lending/lending_fUSD_20251124
["ID","MTS","AMOUNT","RATE_DAILY","PERIOD"]
[394800506,1763965846080,-500.0,0.00036718,8]
[394800507,1763965846089,-500.0,0.00036718,8]
[394800508,1763965846099,-506.15204063,0.00036718,8]
[394800509,1763965846108,-151.0,0.00036718,31]
[394800510,1763965846117,-500.0,0.00036718,8]
[394800511,1763965846126,-500.0,0.00036718,8]
[394800512,1763965846137,-500.0,0.00036718,8]
[394800513,1763965846146,-520.58253044,0.00036718,8]
[394800514,1763965846155,-500.0,0.00036718,8]
[394800515,1763965846164,-500.0,0.00036718,8]
[394800516,1763965846173,-505.8215855,0.00036718,8]
[394800517,1763965846182,-500.0,0.00036718,8]
[394800518,1763965846191,-500.0,0.00036718,8]
[394800519,1763965846201,-506.44642292,0.00036718,8]
[394800520,1763965846210,-503.11658506,0.00036718,8]
[394800521,1763965846219,-528.43807309,0.00036718,8]
[394800522,1763965846228,-500.0,0.00036718,8]
[394800523,1763965846237,-161.64342082,0.00036718,8]
[394800524,1763965846247,-352.73598118,0.00036718,8]
[394800525,1763965846256,-500.0,0.00036718,8]
[394800526,1763965846267,-500.0,0.00036718,8]
[394800527,1763965846276,-649.55107953,0.00036718,8]
[394800528,1763965846286,-500.0,0.00036718,8]
[394800529,1763965846295,-500.0,0.00036718,8]
[394800530,1763965846304,-500.0,0.00036718,8]
[394800531,1763965846313,-500.0,0.00036718,8]
[394800532,1763965846323,-502.7199519,0.00036718,8]
[394800533,1763965846332,-500.0,0.00036718,8]
[394800534,1763965846341,-500.0,0.00036718,8]
[394800535,1763965846351,-890.18,0.00036718,14]
[394800536,1763965846360,-500.0,0.00036718,8]
[394800537,1763965846369,-504.25965622,0.00036718,8]
[394800538,1763965846379,-500.0,0.00036718,8]
[394800539,1763965846388,-500.0,0.00036718,8]
[394800540,1763965846397,-151.0,0.00036718,31]
[394800541,1763965846410,-516.04581981,0.00036718,8]
[394800542,1763965846420,-153.648457,0.00036718,31]
[394800543,1763965846430,-473.41508866,0.00036718,8]
[394800544,1763965846439,-161.940808,0.00036718,31]
[394800545,1763965846448,-613.40928547,0.00036718,8]
[394800546,1763965846458,-500.0,0.00036718,8]
[394800547,1763965846467,-500.0,0.00036718,8]
[394800548,1763965846477,-500.0,0.00036718,8]
[394800549,1763965846486,-164.98179035,0.00036718,8]
[394800550,1763965846496,-500.0,0.00036718,8]
[394800551,1763965846505,-500.0,0.00036718,8]
[394800552,1763965846515,-225.933366,0.00036718,31]
[394800553,1763965846524,-151.0,0.00036718,31]
[394800554,1763965846534,-500.00127748,0.00036718,8]
[394800555,1763965846543,-501.751303,0.00036718,8]
[394800556,1763965846552,-500.0,0.00036718,8]
[394800557,1763965846562,-500.0,0.00036718,8]
[394800558,1763965846572,-510.41952583,0.00036718,8]
[394800559,1763965846581,-646.13698099,0.00036718,8]
[394800560,1763965846591,-501.47628813,0.00036718,8]
[394800561,1763965846600,-500.0,0.00036718,8]
[394800562,1763965846609,-500.0,0.00036718,8]
[394800563,1763965846619,-500.0,0.00036718,8]
[394800564,1763965846628,-500.0,0.00036718,8]
[394800565,1763965846638,-517.29819517,0.00036718,8]
[394800566,1763965846647,-500.0,0.00036718,8]
[394800567,1763965846656,-500.0,0.00036718,8]
[394800568,1763965846665,-621.20164704,0.00036718,8]
[394800569,1763965846674,-531.97395474,0.00036718,8]
[394800570,1763965846683,-501.34950688,0.00036718,8]
[394800571,1763965846693,-500.0,0.00036718,8]
[394800572,1763965846702,-500.0,0.00036718,8]
[394800573,1763965846711,-300.0,0.00036718,2]
[394800574,1763965846720,-500.0,0.00036718,8]
[394800575,1763965846730,-589.81712656,0.00036718,8]
[394800576,1763965846739,-502.30973445,0.00036718,8]
[394800577,1763965846748,-500.0,0.00036718,8]
[394800578,1763965846757,-500.0,0.00036718,8]
[394800579,1763965846767,-500.0,0.00036718,8]
[394800580,1763965846776,-500.0,0.00036718,8]
[394800581,1763965846785,-536.596549,0.00036718,8]
[394800582,1763965846797,-500.0,0.00036718,8]
[394800583,1763965846806,-515.68,0.00036718,8]
[394800584,1763965846815,-151.0,0.00036718,31]
[394800585,1763965846824,-500.0,0.00036718,8]
[394800586,1763965846834,-533.8784336,0.00036718,8]
[394800587,1763965846844,-151.0,0.00036718,31]
[394800588,1763965846853,-500.0,0.00036718,8]
[394800589,1763965846863,-500.0,0.00036718,8]
[394800590,1763965846873,-502.64535015,0.00036718,8]
[394800591,1763965846882,-500.0,0.00036718,8]
[394800592,1763965846891,-296.39390175,0.00036718,8]
[394800593,1763965846901,-571.87187682,0.00036718,8]
[394800594,1763965846910,-500.0,0.00036718,8]
[394800595,1763965846919,-500.0,0.00036718,90]
[394800596,1763965846928,-500.0,0.00036718,8]
[394800597,1763965846937,-500.0,0.00036718,8]
[394800598,1763965846946,-507.33994248,0.00036718,8]
[394800599,1763965846956,-500.0,0.00036718,8]
[394800600,1763965846966,-500.0,0.00036718,8]
[394800601,1763965846977,-527.99711767,0.00036718,8]
[394800602,1763965846986,-500.0,0.00036718,8]
[394800603,1763965846995,-500.0,0.00036718,8]
[394800604,1763965847005,-500.0,0.00036718,8]
[394800605,1763965847017,-500.0,0.00036718,8]
[394800606,1763965847026,-500.0,0.00036718,8]
[394800607,1763965847035,-528.94866562,0.00036718,8]
[394800608,1763965847046,-630.90518977,0.00036718,8]
[394800609,1763965847056,-500.0,0.00036718,8]
[394800610,1763965847066,-151.0,0.00036718,31]
[394800611,1763965847075,-500.0,0.00036718,8]
[394800612,1763965847084,-500.0,0.00036718,8]
[394800613,1763965847094,-500.0,0.00036718,8]
[394800614,1763965847104,-500.0,0.00036718,8]
[394800615,1763965847114,-500.0,0.00036718,8]
[394800616,1763965847123,-511.60328898,0.00036718,8]
[394800617,1763965847133,-500.0,0.00036718,8]
[394800618,1763965847143,-500.0,0.00036718,8]
[394800619,1763965847152,-500.0,0.00036718,8]
[394800620,1763965847161,-567.94840632,0.00036718,8]
[394800621,1763965847171,-506.8280043,0.00036718,8]
[394800622,1763965847180,-500.0,0.00036718,7]
[394800623,1763965847190,-151.20124816,0.00036718,8]
[394800624,1763965847199,-550.82248001,0.00036718,8]
[394800625,1763965847209,-500.0,0.00036718,8]
[394800626,1763965847218,-151.0,0.00036718,31]
[394800627,1763965847227,-500.0,0.00036718,8]
[394800628,1763965847236,-500.0,0.00036718,8]
[394800629,1763965847245,-500.0,0.00036718,8]
[394800630,1763965847254,-500.0,0.00036718,8]
[394800631,1763965847421,-500.0,0.00036718,8]
[394800632,1763965847432,-502.77505296,0.00036718,8]
[394800633,1763965847441,-180.67345719,0.00036718,8]
[394800634,1763965847450,-500.0,0.00036718,8]
[394800635,1763965847461,-514.63095914,0.00036718,8]
[394800636,1763965847470,-501.8762569,0.00036718,8]
[394800637,1763965847479,-504.68203625,0.00036718,8]
[394800638,1763965847489,-369.93461801,0.00036718,8]
[394800639,1763965847503,-500.0,0.00036718,8]
[394800640,1763965847518,-500.0,0.00036718,8]
[394800641,1763965847529,-500.0,0.00036718,8]
[394800642,1763965847539,-500.0,0.00036718,8]
[394800643,1763965847549,-500.0,0.00036718,8]
[394800644,1763965847559,-500.0,0.00036718,8]
[394800645,1763965847568,-500.0,0.00036718,8]
[394800646,1763965847578,-236.26450119,0.00036718,8]
[394800647,1763965847588,-500.0,0.00036718,8]
[394800648,1763965847599,-500.0,0.00036718,8]
[394800649,1763965847608,-509.55913161,0.00036718,8]
[394800650,1763965847619,-210.9936635,0.00036718,8]
[394800651,1763965847629,-607.62440489,0.00036718,8]
[394800652,1763965847639,-500.0,0.00036718,8]
[394800653,1763965847648,-500.0,0.00036718,8]
[394800654,1763965847658,-504.81785043,0.00036718,8]
[394800655,1763965847668,-500.0,0.00036718,7]
[394800656,1763965847678,-500.0,0.00036718,8]
[394800657,1763965847688,-500.0,0.00036718,8]
[394800658,1763965847698,-639.23717673,0.00036718,8]
[394800659,1763965847708,-500.0,0.00036718,8]
[394800660,1763965847718,-151.0,0.00036718,31]
[394800661,1763965847728,-564.49765088,0.00036718,8]
[394800662,1763965847738,-500.0,0.00036718,2]
[394800663,1763965847747,-500.0,0.00036718,8]
[394800664,1763965847756,-500.0,0.00036718,8]
[394800665,1763965847765,-508.3318158,0.00036718,8]
[394800666,1763965847775,-500.0,0.00036718,8]
[394800667,1763965847784,-500.0,0.00036718,8]
[394800668,1763965847794,-285.25619661,0.00036718,8]
[394800669,1763965847803,-442.60331127,0.00036718,8]
[394800670,1763965847813,-531.78231255,0.00036718,8]
[394800671,1763965847822,-569.71885185,0.00036718,8]
[394800672,1763965847832,-544.20769375,0.00036718,8]
[394800673,1763965847842,-500.0,0.00036718,8]
[394800674,1763965847850,-560.06196927,0.00036718,8]
[394800675,1763965847859,-500.0,0.00036718,8]
[394800676,1763965847868,-500.0,0.00036718,8]
[394800677,1763965847877,-519.98044661,0.00036718,8]
[394800678,1763965847886,-501.7260048,0.00036718,8]
[394800679,1763965847895,-500.0,0.00036718,8]
[394800680,1763965847906,-500.0,0.00036718,8]
[394800681,1763965847915,-500.0,0.00036718,8]
[394800682,1763965847924,-500.0,0.00036718,8]
[394800683,1763965847933,-500.0,0.00036718,8]
[394800684,1763965847942,-546.72327003,0.00036718,8]
[394800685,1763965847951,-500.0,0.00036718,8]
[394800686,1763965847960,-500.0,0.00036718,8]
[394800687,1763965847974,-510.60200988,0.00036718,8]
[394800688,1763965847983,-535.64647924,0.00036718,8]
[394800689,1763965847992,-500.0,0.00036718,8]
[394800690,1763965848001,-500.0,0.00036718,8]
[394800691,1763965848011,-151.0,0.00036718,31]
[394800692,1763965848020,-151.0,0.00036718,31]
[394800693,1763965848029,-196.099138,0.00036718,31]
[394800694,1763965848040,-500.0,0.00036718,8]
[394800695,1763965848050,-151.0,0.00036718,31]
[394800696,1763965848059,-500.0,0.00036718,8]
[394800697,1763965848069,-151.0,0.00036718,31]
[394800698,1763965848078,-164.839869,0.00036718,31]
[394800699,1763965848087,-178.386612,0.00036718,31]
[394800700,1763965848096,-349.0861055,0.00036718,8]
[394800701,1763965848106,-500.0,0.00036718,8]
[394800702,1763965848118,-500.0,0.00036718,8]
[394800703,1763965848128,-500.0,0.00036718,8]
[394800704,1763965848138,-539.59869772,0.00036718,8]
[394800705,1763965848147,-532.18599475,0.00036718,8]
[394800706,1763965848157,-506.21646347,0.00036718,8]
[394800707,1763965848167,-500.0,0.00036718,8]
[394800708,1763965848176,-500.0,0.00036718,8]
[394800709,1763965848186,-517.63223301,0.00036718,8]
[394800710,1763965848195,-500.0,0.00036718,8]
[394800711,1763965848204,-500.0,0.00036718,8]
[394800712,1763965848213,-500.0,0.00036718,8]
[394800713,1763965848222,-501.81844013,0.00036718,8]
[394800714,1763965848231,-503.9887768,0.00036718,8]
[394800715,1763965848240,-507.6345797,0.00036718,8]
[394800716,1763965848250,-151.0,0.00036718,31]
[394800717,1763965848259,-164.248103,0.00036718,31]
[394800718,1763965848268,-625.69,0.00036718,8]
[394800719,1763965848277,-500.0,0.00036718,8]
[394800720,1763965848287,-564.34048509,0.00036718,8]
[394800721,1763965848296,-160.845747,0.00036718,31]
[394800722,1763965848306,-503.57332798,0.00036718,8]
[394800723,1763965848315,-508.6078754,0.00036718,8]
[394800724,1763965848324,-151.0,0.00036718,31]
[394800725,1763965848333,-151.0,0.00036718,31]
[394800726,1763965848342,-151.0,0.00036718,31]
[394800727,1763965848351,-505.33014869,0.00036718,8]
[394800728,1763965848362,-151.0,0.00036718,31]
[394800729,1763965848371,-151.0,0.00036718,31]
[394800730,1763965848379,-151.0,0.00036718,31]
[394800731,1763965848388,-151.0,0.00036718,31]
[394800732,1763965848397,-151.0,0.00036718,31]
[394800733,1763965848406,-178.350765,0.00036718,31]
[394800734,1763965848415,-514.71213153,0.00036718,8]
[394800735,1763965848428,-151.0,0.00036718,31]
[394800736,1763965848437,-160.726261,0.00036718,31]
[394800737,1763965848447,-500.0,0.00036718,8]
[394800738,1763965848456,-500.0,0.00036718,8]
[394800739,1763965848465,-500.0,0.00036718,8]
[394800740,1763965848475,-500.0,0.00036718,8]
[394800741,1763965848484,-500.0,0.00036718,8]
[394800742,1763965848493,-637.05114677,0.00036718,8]
[394800743,1763965848503,-523.14033627,0.00036718,8]
[394800744,1763965848512,-500.0,0.00036718,8]
[394800745,1763965848521,-500.0,0.00036718,8]
[394800746,1763965848530,-599.61207922,0.00036718,8]
[394800747,1763965848539,-500.0,0.00036718,8]
[394800748,1763965848549,-232.995886,0.00036718,30]
[394800749,1763965848558,-151.0,0.00036718,31]
[394800750,1763965848568,-151.0,0.00036718,31]
[394800751,1763965848577,-151.0,0.00036718,31]
[394800752,1763965848587,-151.0,0.00036718,31]
[394800753,1763965848596,-534.78945933,0.00036718,8]
[394800754,1763965848606,-151.0,0.00036718,31]
[394800755,1763965848616,-151.0,0.00036718,31]
[394800756,1763965848625,-151.0,0.00036718,31]
[394800757,1763965848635,-151.0,0.00036718,31]
[394800758,1763965848645,-151.0,0.00036718,31]
[394800759,1763965848654,-151.0,0.00036718,31]
[394800760,1763965848664,-151.0,0.00036718,31]
[394800761,1763965848674,-151.0,0.00036718,31]
[394800762,1763965848684,-151.0,0.00036718,31]
[394800763,1763965848693,-151.0,0.00036718,31]
[394800764,1763965848703,-243.980064,0.00036718,31]
[394800765,1763965848712,-151.0,0.00036718,31]
[394800766,1763965848721,-151.0,0.00036718,31]
[394800767,1763965848730,-151.0,0.00036718,31]
[394800768,1763965848739,-447.13317691,0.00036718,8]
[394800769,1763965848748,-151.0,0.00036718,31]
[394800770,1763965848758,-151.0,0.00036718,31]
[394800771,1763965848767,-151.0,0.00036718,31]
[394800772,1763965848776,-500.0,0.00036718,8]
[394800773,1763965848786,-500.0,0.00036718,8]
[394800774,1763965848795,-500.0,0.00036718,8]
[394800775,1763965848804,-502.75711562,0.00036718,8]
[394800776,1763965848814,-567.6760734,0.00036718,8]
[394800777,1763965848823,-500.0,0.00036718,8]
[394800778,1763965848832,-500.0,0.00036718,8]
[394800779,1763965848841,-500.0,0.00036718,8]
[394800780,1763965848850,-500.0,0.00036718,8]
[394800781,1763965848860,-511.80505101,0.00036718,8]
[394800782,1763965848869,-500.0,0.00036718,8]
[394800783,1763965848879,-151.0,0.00036718,31]
[394800784,1763965848888,-151.0,0.00036718,31]
[394800785,1763965848898,-151.0,0.00036718,31]
[394800786,1763965848907,-500.0,0.00036718,8]
[394800787,1763965848917,-505.1518702,0.00036718,8]
[394800788,1763965848926,-533.47437537,0.00036718,8]
[394800789,1763965848935,-151.0,0.00036718,31]
[394800790,1763965848945,-502.51819949,0.00036718,8]
[394800791,1763965848955,-500.0,0.00036718,8]
[394800792,1763965848964,-151.0,0.00036718,31]
[394800793,1763965848978,-151.0,0.00036718,31]
[394800794,1763965848988,-167.400431,0.00036718,31]
[394800795,1763965848998,-502.00886335,0.00036718,8]
[394800796,1763965849007,-500.0,0.00036718,8]
[394800797,1763965849017,-198.323334,0.00036718,31]
[394800798,1763965849027,-198.323334,0.00036718,31]
[394800799,1763965849036,-198.323334,0.00036718,31]
[394800800,1763965849049,-548.6945929,0.00036718,8]
[394800801,1763965849058,-198.323334,0.00036718,31]
[394800802,1763965849075,-198.323334,0.00036718,31]
[394800803,1763965849088,-198.323334,0.00036718,31]
[394800804,1763965849104,-500.0,0.00036718,8]
[394800805,1763965849117,-198.323334,0.00036718,31]
[394800806,1763965849130,-198.323334,0.00036718,31]
[394800807,1763965849141,-198.323334,0.00036718,31]
[394800808,1763965849154,-198.323334,0.00036718,31]
[394800809,1763965849171,-198.323334,0.00036718,31]
[394800810,1763965849183,-198.323334,0.00036718,31]
[394800811,1763965849196,-500.0,0.00036718,8]
[394800812,1763965849208,-502.89341695,0.00036718,8]
[394800813,1763965849222,-622.54296116,0.00036718,8]
[394800814,1763965849234,-500.0,0.00036718,8]
[394800815,1763965849246,-501.38045235,0.00036718,8]
[394800816,1763965849259,-500.0,0.00036718,8]
[394800817,1763965849271,-500.0,0.00036718,8]
[394800818,1763965849284,-500.0,0.00036718,8]
[394800819,1763965849297,-500.0,0.00036718,8]
[394800820,1763965849309,-500.0,0.00036718,8]
[394800821,1763965849321,-500.0,0.00036718,8]
[394800822,1763965849334,-500.0,0.00036718,8]
[394800823,1763965849346,-500.0,0.00036718,8]
[394800824,1763965849359,-184.922247,0.00036718,31]
[394800825,1763965849371,-507.096263,0.00036718,8]
[394800826,1763965849384,-327.307542,0.00036718,31]
[394800827,1763965849395,-327.307542,0.00036718,31]
[394800828,1763965849408,-500.0,0.00036718,8]
[394800829,1763965849421,-327.307542,0.00036718,31]
[394800830,1763965849433,-327.307542,0.00036718,31]
[394800831,1763965849445,-327.307542,0.00036718,31]
[394800832,1763965849458,-327.307542,0.00036718,31]
[394800833,1763965849470,-151.0,0.00036718,31]
[394800834,1763965849482,-327.307542,0.00036718,31]
[394800835,1763965849493,-327.307542,0.00036718,31]
[394800836,1763965849505,-151.0,0.00036718,31]
[394800837,1763965849517,-151.0,0.00036718,31]
[394800838,1763965849535,-327.307542,0.00036718,31]
[394800839,1763965849548,-500.0,0.00036718,8]
[394800840,1763965849562,-500.0,0.00036718,8]
[394800841,1763965849575,-151.0,0.00036718,31]
[394800842,1763965849586,-327.307542,0.00036718,31]
[394800843,1763965849596,-327.307542,0.00036718,31]
[394800844,1763965849606,-151.0,0.00036718,31]
[394800845,1763965849618,-327.307542,0.00036718,31]
[394800846,1763965849631,-249.300723,0.00036718,31]
[394800847,1763965849645,-151.0,0.00036718,31]
[394800848,1763965849656,-151.0,0.00036718,31]
[394800849,1763965849666,-151.0,0.00036718,31]
[394800850,1763965849676,-187.519503,0.00036718,31]
[394800851,1763965849687,-503.31968,0.00036718,8]
[394800852,1763965849699,-500.0,0.00036718,8]
[394800853,1763965849711,-1267.37,0.00036718,8]
[394800854,1763965849726,-500.0,0.00036718,8]
[394800855,1763965849737,-151.0,0.00036718,31]
[394800856,1763965849747,-267.03443,0.00036718,31]
[394800857,1763965849758,-500.0,0.00036718,8]
[394800858,1763965849768,-500.0,0.00036718,8]
[394800859,1763965849780,-500.0,0.00036718,8]
[394800860,1763965849791,-500.0,0.00036718,8]
[394800861,1763965849802,-500.0,0.00036718,8]
[394800862,1763965849813,-506.26065439,0.00036718,8]
[394800863,1763965849825,-369.647689,0.00036718,31]
[394800864,1763965849837,-369.647689,0.00036718,31]
[394800865,1763965849848,-515.15498482,0.00036718,8]
[394800866,1763965849860,-369.647689,0.00036718,31]
[394800867,1763965849876,-500.0,0.00036718,8]
[394800868,1763965849888,-369.647689,0.00036718,31]
[394800869,1763965849900,-369.647689,0.00036718,31]
[394800870,1763965849912,-369.647689,0.00036718,31]
[394800871,1763965849924,-506.6856091,0.00036718,8]
[394800872,1763965849936,-500.0,0.00036718,8]
[394800873,1763965849948,-500.0,0.00036718,8]
[394800874,1763965849960,-504.22351907,0.00036718,8]
[394800875,1763965849974,-506.86377156,0.00036718,8]
[394800876,1763965849987,-500.0,0.00036718,8]
[394800877,1763965849998,-500.0,0.00036718,8]
[394800878,1763965850011,-322.53272953,0.00036718,8]
[394800879,1763965850023,-510.19976485,0.00036718,8]
[394800880,1763965850035,-505.52944894,0.00036718,8]
[394800881,1763965850048,-504.87859737,0.00036718,8]
[394800882,1763965850060,-500.0,0.00036718,8]
[394800883,1763965850071,-500.0,0.00036718,8]
[394800884,1763965850083,-500.0,0.00036718,8]
[394800885,1763965850094,-151.0,0.00036718,31]
[394800886,1763965850105,-151.0,0.00036718,31]
[394800887,1763965850117,-151.0,0.00036718,31]
[394800888,1763965850128,-151.0,0.00036718,31]
[394800889,1763965850139,-151.0,0.00036718,31]
[394800890,1763965850150,-151.0,0.00036718,31]
[394800891,1763965850161,-151.0,0.00036718,31]
[394800892,1763965850172,-151.0,0.00036718,31]
[394800893,1763965850183,-151.0,0.00036718,31]
[394800894,1763965850194,-517.48571489,0.00036718,8]
[394800895,1763965850205,-700.0,0.00036718,120]
[394800896,1763965850216,-506.31850404,0.00036718,8]
[394800897,1763965850226,-504.82518202,0.00036718,8]
[394800898,1763965850237,-500.0,0.00036718,2]
[394800899,1763965850250,-500.0,0.00036718,2]
[394800900,1763965850260,-500.0,0.00036718,2]
[394800901,1763965850271,-500.96274646,0.00036718,8]
[394800902,1763965850284,-503.7460562,0.00036718,8]
[394800903,1763965850294,-504.76225331,0.00036718,8]
[394800904,1763965850305,-151.0,0.00036718,15]
[394800905,1763965850315,-151.0,0.00036718,15]
[394800906,1763965850327,-212.636645,0.00036718,15]
[394800907,1763965850337,-540.38676468,0.00036718,8]
[394800908,1763965850348,-500.0,0.00036718,8]
[394800909,1763965850359,-500.0,0.00036718,8]
[394800910,1763965850370,-151.0,0.00036718,31]
[394800911,1763965850381,-151.0,0.00036718,30]
[394800912,1763965850392,-500.0,0.00036718,8]
[394800913,1763965850403,-151.0,0.00036718,31]
[394800914,1763965850414,-151.0,0.00036718,30]
[394800915,1763965850425,-242.936274,0.00036718,31]
[394800916,1763965850435,-151.0,0.00036718,30]
[394800917,1763965850446,-504.91098871,0.00036718,8]
[394800918,1763965850456,-151.0,0.00036718,30]
[394800919,1763965850467,-151.0,0.00036718,30]
[394800920,1763965850478,-501.08748662,0.00036718,8]
[394800921,1763965850489,-151.0,0.00036718,30]
[394800922,1763965850499,-500.0,0.00036718,8]
[394800923,1763965850510,-500.0,0.00036718,8]
[394800924,1763965850520,-506.42909579,0.00036718,8]
[394800925,1763965850531,-500.0,0.00036718,8]
[394800926,1763965850542,-527.61750027,0.00036718,8]
[394800927,1763965850553,-502.1470902,0.00036718,2]
[394800928,1763965850564,-500.0,0.00036718,8]
[394800929,1763965850575,-500.0,0.00036718,8]
[394800930,1763965850586,-500.0,0.00036718,8]
[394800931,1763965850596,-385.7541323,0.00036718,8]
[394800932,1763965850607,-500.0,0.00036718,8]
[394800933,1763965850617,-500.0,0.00036718,8]
[394800934,1763965850628,-500.0,0.00036718,8]
[394800935,1763965850639,-500.0,0.00036718,8]
[394800936,1763965850650,-507.2598299,0.00036718,8]
[394800937,1763965850661,-1000.0,0.00036718,2]
[394800938,1763965850672,-502.23566281,0.00036718,8]
[394800939,1763965850683,-547.21294925,0.00036718,8]
[394800940,1763965850694,-504.07724043,0.00036718,8]
[394800941,1763965850705,-500.0,0.00036718,8]
[394800942,1763965850716,-500.0,0.00036718,8]
[394800943,1763965850728,-505.29160077,0.00036718,8]
[394800944,1763965850739,-500.0,0.00036718,8]
[394800945,1763965850750,-500.0,0.00036718,8]
[394800946,1763965850761,-151.0,0.00036718,31]
[394800947,1763965850772,-151.0,0.00036718,31]
[394800948,1763965850783,-151.0,0.00036718,31]
[394800949,1763965850794,-151.0,0.00036718,31]
[394800950,1763965850805,-500.0,0.00036718,8]
[394800951,1763965850816,-176.942146,0.00036718,31]
[394800952,1763965850828,-151.0,0.00036718,31]
[394800953,1763965850839,-507.16636898,0.00036718,8]
[394800954,1763965850851,-500.0,0.00036718,8]
[394800955,1763965850863,-500.0,0.00036718,8]
[394800956,1763965850874,-500.0,0.00036718,8]
[394800957,1763965850886,-500.0,0.00036718,8]
[394800958,1763965850898,-172.188611,0.00036718,31]
[394800959,1763965850909,-172.188611,0.00036718,31]
[394800960,1763965850920,-172.188611,0.00036718,31]
[394800961,1763965850932,-151.0,0.00036718,31]
[394800962,1763965850943,-151.000004,0.00036718,31]
[394800963,1763965850952,-503.15997761,0.00036718,8]
[394800964,1763965850962,-172.188611,0.00036718,31]
[394800965,1763965850975,-172.188611,0.00036718,31]
[394800966,1763965851214,-172.188611,0.00036718,31]
[394800967,1763965851232,-172.188611,0.00036718,31]
[394800968,1763965851242,-503.0348331,0.00036718,8]
[394800969,1763965851252,-500.0,0.00036718,8]
[394800970,1763965851261,-172.188611,0.00036718,31]
[394800971,1763965851270,-172.188611,0.00036718,31]
[394800972,1763965851279,-503.13902767,0.00036718,8]
[394800973,1763965851288,-172.188611,0.00036718,31]
[394800974,1763965851297,-151.0,0.00036718,31]
[394800975,1763965851307,-172.188611,0.00036718,31]
[394800976,1763965851316,-500.0,0.00036718,8]
[394800977,1763965851325,-172.188611,0.00036718,31]
[394800978,1763965851335,-212.491741,0.00036718,31]
[394800979,1763965851344,-212.491741,0.00036718,31]
[394800980,1763965851353,-212.491741,0.00036718,31]
[394800981,1763965851363,-151.0,0.00036718,31]
[394800982,1763965851372,-212.491741,0.00036718,31]
[394800983,1763965851382,-500.0,0.00036718,8]
[394800984,1763965851391,-500.0,0.00036718,8]
[394800985,1763965851400,-212.491741,0.00036718,31]
[394800986,1763965851409,-212.491741,0.00036718,31]
[394800987,1763965851418,-151.0,0.00036718,31]
[394800988,1763965851427,-151.0,0.00036718,31]
[394800989,1763965851436,-151.0,0.00036718,31]
[394800990,1763965851445,-212.491741,0.00036718,31]
[394800991,1763965851455,-212.491741,0.00036718,31]
[394800992,1763965851463,-212.491741,0.00036718,31]
[394800993,1763965851473,-500.0,0.00036718,8]
[394800994,1763965851482,-500.0,0.00036718,8]
[394800995,1763965851493,-151.0,0.00036718,31]
[394800996,1763965851501,-177.568475,0.00036718,31]
[394800997,1763965851510,-212.491741,0.00036718,31]
[394800998,1763965851519,-212.491741,0.00036718,31]
[394800999,1763965851527,-212.491741,0.00036718,31]
[394801000,1763965851536,-151.0,0.00036718,31]
[394801001,1763965851545,-500.0,0.00036718,8]
[394801002,1763965851555,-151.0,0.00036718,31]
[394801003,1763965851564,-151.0,0.00036718,31]
[394801004,1763965851573,-151.0,0.00036718,31]
[394801005,1763965851582,-299.127929,0.00036718,31]